Workbook

Sheet Berechnung
B2: Vergleich Nettozufluss nach Sozialleistungen und Steuern bei Bonus oder Dividende im Kanton Zürich (ab Steuerjahr 2011)
B4: Rohgewinn der Gesellschaft vor Bonus/Gewinnverwendung | G4: 199500 | I4: Steuerbares Einkommen vor Bonus (privat) | N4: Staatssteuer | O4: 160000
B5: Geschäftsjahr | G5: 2011 | I5: Tarif | L5: TRUE | N5: Bundessteuer | O5: 170000
B7: Bonus und Soz.leistungen, dafür keine Unternehmenssteuern | I7: Dividende nur teilbesteuert, dafür Unternehmenssteuern
B9: Salär/Bonus Aktionär/Stammhalt. | D9: bisheriger Lohn | E9: 160000 | I9: ="Mehrsteuern bei der Gesellschaft "&Jahr -> Mehrsteuern bei der Gesellschaft 2011
B10: Bonus | E10: 186773.9304 | I10: Zusätzlicher steuerbarer Reingewinn der Gesellschaft (nach Steuern) | M10: 156232.0624
B11: AHV | D11: =C19/2 -> 0.0505 | E11: =-E$10*D11 -> -9432.083486 | I11: Zusätzlicher steuerbarer Reingewinn | K11: =ROUNDDOWN(M10,-2) -> 156200 | L11: 0.08 | M11: =ROUNDDOWN(K11*L11,0) -> 12496
B12: ALV | C12: Anteil | D12: =C20/2 -> 0.01 | E12: =-E20/C20*D12 -> 0 | I12: Zusätzliches steuerbares Eigenkapital | K12: =K11 -> 156200 | L12: 0.00075 | M12: =ROUNDDOWN(K12*L12,0) -> 117
B13: NBUV | C13: 1 | D13: =C22*C13 -> 0.018 | E13: =-E22*C13 -> 0 | I13: Total einfache Staatssteuer | M13: =SUM(M11:M12) -> 12613
B14: KTG | C14: 0.5 | D14: =C23 -> 0.015 | E14: =-E23*C14 -> -300
B15: BVG | C15: 0.5 | D15: =C24 -> 0 | E15: =-C15*D15 -> 0 | K15: Staat | L15: Gemeinde | M15: Total
B16: Nettolohn | E16: =SUM(E10:E15) -> 177041.8469 | F16: =-E16 -> -177041.8469 | G16: =E16 -> 177041.8469 | I16: Steuerfuss | K16: =VLOOKUP(Jahr+1,Staatssteuerfuss,2) -> 1 | L16: 1.3782 | M16: =SUM(K16:L16) -> 2.3782
I17: Zusätzliche Staats- und Gemeindesteuern | N17: =M13*M16 -> 29996.2366
B18: Soziallasten (AG + AN) | C18: Ansatz | D18: Maximum
B19: AHV | C19: 0.101 | E19: =E$10*C19 -> 18864.16697 | I19: Dir. Bundessteuer | L19: =ROUNDDOWN(Gewinn,-2) -> 156200 | M19: 0.085 | N19: =L19*M19 -> 13277
B20: ALV | C20: 0.02 | D20: 126000 | E20: =MAX(MIN(D20-$E$9,Salaer),0)*C20 -> 0 | I20: Total Steuern Unternehmung | L20: =ROUNDDOWN(ABS((G4-M10-N20))/2,-1)*2 -> 0 | N20: =+N17+N19 -> 43273.2366
B21: BU | C21: 0.003 | D21: 126000 | E21: =MAX(MIN(D21-$E$9,Salaer),0)*C21 -> 0
B22: NBUV | C22: 0.018 | D22: =D21 -> 126000 | E22: =MAX(MIN(D22-$E$9,Salaer),0)*C22 -> 0 | I22: Rohgewinn nach Steuern | N22: =K11 -> 156200
B23: KTG | C23: 0.015 | D23: 200000 | E23: =MAX(MIN(D23-$E$9,Salaer),0)*C23 -> 600 | I23: Gesetzl. Reserven: | J23: ordentlich | M23: 0 | N23: =N22*-M23 -> 0
B24: BVG | C24: 0 | E24: =C24 -> 0 | I24: Gesetzl. Reserven: | J24: Superdiv. | K24: Aktienkap. | L24: 100000 | M24: 0 | N24: =-M24*MAX(0,L25-(5%*L24)) -> 0
B25: FAK | C25: 0.013 | E25: =E$10*C25 -> 2428.061095 | I25: Für Dividenden-Ausschüttung steht zur Verfügung | L25: 156200 | M25: =L25-N25 -> 0 | N25: =SUM(N22:N24) -> 156200 | O25: =N25 -> 156200
B26: AHV-Verwaltungsko. | C26: 0.03 | E26: =E19*C26 -> 565.9250091
E27: =SUM(E19:E26) -> 22458.15308 | F27: =-E27 -> -22458.15308
B28: Reingewinn Gesellschaft nach Bonus | F28: =F16+F27+G4 -> 0 | I28: ="Mehrbesteuerung privat "&Jahr+1 -> Mehrbesteuerung privat 2012
K29: Staat | L29: Gemeinde | M29: Kirche | N29: Total
B30: ="Besteuerung privat "&Jahr -> Besteuerung privat 2011 | E30: Staat | F30: Bund | I30: Steuerfuss | K30: =K16 -> 1 | L30: 1.1 | M30: 0.1 | N30: =SUM(K30:M30) -> 2.2
B31: Nettosalär | E31: =ROUND(E16,0) -> 177042 | F31: =E31 -> 177042 | I31: Steuertarif | L31: =VLOOKUP(Jahr+1,Staatssteuerfuss,3) -> Tarif2012 | M31: =E36 -> ZH_EVT | N31: =F36 -> Bund_B
B32: Einfluss auf Berufsauslagen/Doppelverdienerabz. | E32: 0 | F32: 0 | M32: =L31&"!"&M31 -> Tarif2012!ZH_EVT | N32: =L31&"!"&N31 -> Tarif2012!Bund_B
B33: Steuerbares Einkommen | E33: =O4+SUM(E31:E32) -> 337042 | F33: =O5+SUM(F31:F32) -> 347042 | I33: Staats- + Gde.steuern | K33: steu.b.Einko. | L33: Steuersatz | M33: einf.SS | N33: Steuer
C34: Staat | D34: Gemeinde | E34: Kirche | F34: Total | I34: Einkommen ohne Dividennde | K34: =O4 -> 160000 | L34: =ROUND((VLOOKUP(K34,INDIRECT($M$32),2)+(K34-VLOOKUP(K34,INDIRECT($M$32),1))*VLOOKUP(K34,INDIRECT($M$32),3))/K34,5) -> 0.06286 | M34: =ROUNDDOWN(K34*L34,0) -> 10057 | N34: =ROUND(M34*N30/5,2)*5 -> 22125.4
B35: Steuerfuss | C35: =VLOOKUP(Jahr,Staatssteuerfuss,2) -> 1 | D35: 1.12 | E35: 0.1 | F35: =SUM(C35:E35) -> 2.22 | I35: Einkommen mit unqualif. Dividende | K35: =O4+O25 -> 316200 | L35: =ROUND((VLOOKUP(K35,INDIRECT($M$32),2)+(K35-VLOOKUP(K35,INDIRECT($M$32),1))*VLOOKUP(K35,INDIRECT($M$32),3))/K35,5) -> 0.0848 | M35: =ROUNDDOWN(K35*L35,0) -> 26813 | N35: =ROUND(M35*N30/5,2)*5 -> 58988.6 | O35: =IF(K38,0,-N35+N34) -> 0
B36: Steuertarif | D36: =VLOOKUP(Jahr,Staatssteuerfuss,3) -> Tarif2011 | E36: ="ZH_"&IF(Zivilstand,"EVT","EGT") -> ZH_EVT | F36: ="Bund_"&IF(Zivilstand,"B","A") -> Bund_B | I36: Privileg. Beteiligung: | J36: Einko. ordentl. | K36: =O4 -> 160000 | L36: =L35 -> 0.0848 | M36: =ROUNDDOWN(K36*L36,0) -> 13568
E37: =D36&"!"&E36 -> Tarif2011!ZH_EVT | F37: =D36&"!"&F36 -> Tarif2011!Bund_B | J37: Dividende | K37: =ROUNDDOWN(O25,-2) -> 156200 | L37: =ROUND(L35/2,5) -> 0.0424 | M37: =ROUNDDOWN(K37*L37,0) -> 6622
B38: Staats- + Gde.steuern | C38: steu.b. Einko. | D38: Steuersatz | E38: einf.SS | F38: Steuer | K38: TRUE | M38: =SUM(M36:M37) -> 20190 | N38: =ROUND(M38*N30/5,2)*5 -> 44418 | O38: =IF(K38,-N38+N34,0) -> -22292.6
B39: Einkommen ordentlich | C39: =ROUNDDOWN(O4,-2) -> 160000 | D39: =(VLOOKUP(C39,INDIRECT($E$37),2)+(C39-VLOOKUP(C39,INDIRECT($E$37),1))*VLOOKUP(C39,INDIRECT($E$37),3))/C39 -> 0.06521875 | E39: =ROUND(C39*D39,0) -> 10435 | F39: =ROUND(E39*F35/5,2)*5 -> 23165.7
B40: Einkommen inkl. Bonus | C40: =ROUNDDOWN(E33,-2) -> 337000 | D40: =(VLOOKUP(C40,INDIRECT($E$37),2)+(C40-VLOOKUP(C40,INDIRECT($E$37),1))*VLOOKUP(C40,INDIRECT($E$37),3))/C40 -> 0.08987240356 | E40: =ROUND(C40*D40,0) -> 30287 | F40: =ROUND(E40*F35/5,2)*5 -> 67237.15 | G40: =-F40+F39 -> -44071.45 | I40: Bundessteuer | L40: steu.b.Einko. | M40: Steuersatz | N40: Steuer
I41: Einkommen ordentlich | L41: =O5 -> 170000 | M41: =IF(L41>0,ROUND(N41/L41,5),0) -> 0.05095 | N41: =VLOOKUP(L41,INDIRECT($N$32),2)+(L41-VLOOKUP(L41,INDIRECT($N$32),1))*VLOOKUP(L41,INDIRECT($N$32),3) -> 8662
B42: Bundessteuer | E42: steu.b. Einko. | F42: Steuer | I42: Einkommen mit Dividende | J42: unqualifiziert | K42: TRUE | L42: =O5+O25 -> 326200 | M42: =IF(L42>0,ROUND(N42/L42,5),0) -> 0.0888 | N42: =VLOOKUP(L42,INDIRECT($N$32),2)+(L42-VLOOKUP(L42,INDIRECT($N$32),1))*VLOOKUP(L42,INDIRECT($N$32),3) -> 28968 | O42: =IF(K42,0,-N42+N41) -> 0
B43: Einkommen ordentlich | E43: =ROUNDDOWN(O5,-2) -> 170000 | F43: =VLOOKUP(E43,INDIRECT($F$37),2)+(E43-VLOOKUP(E43,INDIRECT($F$37),1))*VLOOKUP(E43,INDIRECT($F$37),3) -> 8759 | J43: qualifiziert | K43: 0.6 | L43: =ROUNDDOWN(O5+(K43*O25),-2) -> 263700 | M43: =IF(L43>0,ROUND(N43/L43,5),0) -> 0.07904 | N43: =VLOOKUP(L43,INDIRECT($N$32),2)+(L43-VLOOKUP(L43,INDIRECT($N$32),1))*VLOOKUP(L43,INDIRECT($N$32),3) -> 20843 | O43: =IF(K42,-N43+N41,0) -> -12181
B44: Einkommen inkl. Bonus | E44: =ROUNDDOWN(F33,-2) -> 347000 | F44: =VLOOKUP(E44,INDIRECT($F$37),2)+(E44-VLOOKUP(E44,INDIRECT($F$37),1))*VLOOKUP(E44,INDIRECT($F$37),3) -> 31769 | G44: =-F44+F43 -> -23010
B46: Nettozufluss privat (nach Steuern) | G46: =SUM(G8:G44) -> 109960.3969 | I46: Nettozufluss privat (nach Steuern) | O46: =SUM(O8:O45) -> 121726.4
B47: Total Steuern und Abgaben | F47: =IF(G46>0,G47/(G47+G46),"") -> 0.4488200655 | G47: =-(F27+G40+G44) -> 89539.60308 | I47: Total Steuern und Abgaben | N47: =IF(O47>0,O47/(O47+O46),"") -> 0.3897607415 | O47: =+N20-O35-O38-O42-O43 -> 77746.8366
B49: ="gedruckt am "&TEXT(TODAY(),"TT.MM.JJ") -> gedruckt am 29.05.13
F52: Zusammenfassung Steuern und Abgaben
D53: Modell | E53: Bonus | F53: Dividende
D54: Sozialvers. Arbeitnehmer | E54: =Salaer-E16 -> 9732.083486 | F54: 0
D55: Sozialvers. Gesellschaft | E55: =E27-E54 -> 12726.06959 | F55: 0
D56: Steuern Gesellschaft | E56: 0 | F56: =N20 -> 43273.2366
D57: Staats-/Gde.steuern privat | E57: =-G40 -> 44071.45 | F57: =-(O38+O35) -> 22292.6
D58: Bundessteuern privat | E58: =-G44 -> 23010 | F58: =-(O42+O43) -> 12181
D59: Total | E59: =SUM(E54:E58) -> 89539.60308 | F59: =SUM(F54:F58) -> 77746.8366

Sheet Staat
A1: Staatssteuerfüsse
A2: Jahr | B2: Staatssteuerfuss | C2: Tarif
A3: 2011 | B3: 1 | C3: Tarif2011
A4: 2012 | B4: 1 | C4: Tarif2012
A5: 2013 | B5: 1 | C5: Tarif2012

Sheet Tarif2011
A1: Kanton Zürich, Tarif 2011 (ab 2006 gleich)
A3: Einkommen - Tarif GT | E3: Einkommen - Tarif VT
A4: EINK | B4: STEUER | C4: PLUS | E4: EINK | F4: STEUER | G4: PLUS
A5: 0 | B5: 0 | C5: 0 | E5: 0 | F5: 0 | G5: 0
A6: 6200 | B6: 0 | C6: 0.02 | E6: 12400 | F6: 0 | G6: 0.02
A7: 10500 | B7: 85 | C7: 0.03 | E7: 18100 | F7: 113 | G7: 0.03
A8: 14800 | B8: 214 | C8: 0.04 | E8: 25200 | F8: 326 | G8: 0.04
A9: 21800 | B9: 494 | C9: 0.05 | E9: 33800 | F9: 670 | G9: 0.05
A10: 30400 | B10: 924 | C10: 0.06 | E10: 43700 | F10: 1165 | G10: 0.06
A11: 40300 | B11: 1518 | C11: 0.07 | E11: 56500 | F11: 1933 | G11: 0.07
A12: 51700 | B12: 2316 | C12: 0.08 | E12: 84900 | F12: 3921 | G12: 0.08
A13: 67300 | B13: 3564 | C13: 0.09 | E13: 113300 | F13: 6192 | G13: 0.09
A14: 97200 | B14: 6255 | C14: 0.1 | E14: 156000 | F14: 10035 | G14: 0.1
A15: 126900 | B15: 9225 | C15: 0.11 | E15: 207100 | F15: 15145 | G15: 0.11
A16: 173900 | B16: 14395 | C16: 0.12 | E16: 262500 | F16: 21238 | G16: 0.12
A17: 234900 | B17: 21714 | C17: 0.13 | E17: 326400 | F17: 28909 | G17: 0.13
A22: Vermögen - Tarif GT | E22: Vermögen - Tarif VT
A23: VERM | B23: STEUER | C23: PLUS | E23: VERM | F23: STEUER | G23: PLUS
A24: 0 | B24: 0 | C24: 0 | E24: 0 | F24: 0 | G24: 0
A25: 71000 | B25: 0 | C25: 0.0005 | E25: 142000 | F25: 0 | G25: 0.0005
A26: 284000 | B26: 106 | C26: 0.001 | E26: 355000 | F26: 106 | G26: 0.001
A27: 640000 | B27: 462 | C27: 0.0015 | E27: 710000 | F27: 461 | G27: 0.0015
A28: 1207000 | B28: 1312 | C28: 0.002 | E28: 1277000 | F28: 1311 | G28: 0.002
A29: 2060000 | B29: 3017 | C29: 0.0025 | E29: 2130000 | F29: 3016 | G29: 0.0025
A30: 2911000 | B30: 5143 | C30: 0.003 | E30: 2982000 | F30: 5146 | G30: 0.003
A33: Bund - Tarif V (Verheiratete) | E33: Bund - Tarif A (Alleinstehend)
A34: EINK | B34: STEUER | C34: PLUS | E34: EINK | F34: STEUER | G34: PLUS
A35: 0 | B35: 0 | C35: 0 | E35: 0 | F35: 0 | G35: 0
A36: 28100 | B36: 0 | C36: 0.01 | E36: 14500 | F36: 0.75 | G36: 0.0077
A37: 50500 | B37: 225 | C37: 0.02 | E37: 31600 | F37: 132.5 | G37: 0.0088
A38: 58000 | B38: 376 | C38: 0.03 | E38: 41300 | F38: 219.6 | G38: 0.0264
A39: 74800 | B39: 881 | C39: 0.04 | E39: 55100 | F39: 584.25 | G39: 0.0297
A40: 89800 | B40: 1482 | C40: 0.05 | E40: 72300 | F40: 1098 | G40: 0.0594
A41: 102800 | B41: 2133 | C41: 0.06 | E41: 77800 | F41: 1425.4 | G41: 0.066
A42: 114000 | B42: 2806 | C42: 0.07 | E42: 103100 | F42: 3097.4 | G42: 0.088
A43: 123400 | B43: 3465 | C43: 0.08 | E43: 134000 | F43: 5818.8 | G43: 0.11
A44: 130900 | B44: 4066 | C44: 0.09 | E44: 175100 | F44: 10342 | G44: 0.132
A45: 136400 | B45: 4562 | C45: 0.1 | E45: 751400 | F45: 86411 | G45: 0.115
A46: 140300 | B46: 4953 | C46: 0.11
A47: 142200 | B47: 5163 | C47: 0.12
A48: 144100 | B48: 5392 | C48: 0.13
A49: 889500 | B49: 102292.5 | C49: 0.115

Sheet Tarif2012
A1: Kanton Zürich, Tarif 2012
A3: Einkommen - Tarif GT | E3: Einkommen - Tarif VT
A4: EINK | B4: STEUER | C4: PLUS | E4: EINK | F4: STEUER | G4: PLUS
A5: 0 | B5: 0 | C5: 0 | E5: 0 | F5: 0 | G5: 0
A6: 6700 | B6: 0 | C6: 0.02 | E6: 13500 | F6: 0 | G6: 0.02
A7: 11400 | B7: 94 | C7: 0.03 | E7: 19600 | F7: 122 | G7: 0.03
A8: 16100 | B8: 235 | C8: 0.04 | E8: 27300 | F8: 353 | G8: 0.04
A9: 23700 | B9: 539 | C9: 0.05 | E9: 36700 | F9: 729 | G9: 0.05
A10: 33000 | B10: 1004 | C10: 0.06 | E10: 47400 | F10: 1264 | G10: 0.06
A11: 43700 | B11: 1646 | C11: 0.07 | E11: 61300 | F11: 2098 | G11: 0.07
A12: 56100 | B12: 2514 | C12: 0.08 | E12: 92100 | F12: 4254 | G12: 0.08
A13: 73000 | B13: 3866 | C13: 0.09 | E13: 122900 | F13: 6718 | G13: 0.09
A14: 105500 | B14: 6791 | C14: 0.1 | E14: 169300 | F14: 10894 | G14: 0.1
A15: 137700 | B15: 10011 | C15: 0.11 | E15: 224700 | F15: 16434 | G15: 0.11
A16: 188700 | B16: 15621 | C16: 0.12 | E16: 284800 | F16: 23045 | G16: 0.12
A17: 254900 | B17: 23565 | C17: 0.13 | E17: 354100 | F17: 31361 | G17: 0.13
A22: Vermögen - Tarif GT | E22: Vermögen - Tarif VT
A23: VERM | B23: STEUER | C23: PLUS | E23: VERM | F23: STEUER | G23: PLUS
A24: 0 | B24: 0 | C24: 0 | E24: 0 | F24: 0 | G24: 0
A25: 77000 | B25: 0 | C25: 0.0005 | E25: 154000 | F25: 0 | G25: 0.0005
A26: 308000 | B26: 115.5 | C26: 0.001 | E26: 385000 | F26: 115.5 | G26: 0.001
A27: 694000 | B27: 501.5 | C27: 0.0015 | E27: 770000 | F27: 500.5 | G27: 0.0015
A28: 1310000 | B28: 1425.5 | C28: 0.002 | E28: 1386000 | F28: 1424.5 | G28: 0.002
A29: 2235000 | B29: 3275.5 | C29: 0.0025 | E29: 2311000 | F29: 3274.5 | G29: 0.0025
A30: 3158000 | B30: 5583 | C30: 0.003 | E30: 3235000 | F30: 5584.5 | G30: 0.003
A33: Bund - Tarif V (Verheiratete) | E33: Bund - Tarif A (Alleinstehend)
A34: EINK | B34: STEUER | C34: PLUS | E34: EINK | F34: STEUER | G34: PLUS
A35: 0 | B35: 0 | C35: 0 | E35: 0 | F35: 0 | G35: 0
A36: 28300 | B36: 0 | C36: 0.01 | E36: 14500 | F36: 0 | G36: 0.0077
A37: 51000 | B37: 228 | C37: 0.02 | E37: 31700 | F37: 132.55 | G37: 0.0088
A38: 58500 | B38: 379 | C38: 0.03 | E38: 41500 | F38: 220.5 | G38: 0.0264
A39: 75400 | B39: 887 | C39: 0.04 | E39: 55300 | F39: 585.15 | G39: 0.0297
A40: 90400 | B40: 1488 | C40: 0.05 | E40: 72600 | F40: 1101.9 | G40: 0.0594
A41: 103500 | B41: 2144 | C41: 0.06 | E41: 78200 | F41: 1435.2 | G41: 0.066
A42: 114800 | B42: 2823 | C42: 0.07 | E42: 103700 | F42: 3120.4 | G42: 0.088
A43: 124300 | B43: 3489 | C43: 0.08 | E43: 134700 | F43: 5850.6 | G43: 0.11
A44: 131800 | B44: 4090 | C44: 0.09 | E44: 176100 | F44: 10406.8 | G44: 0.132
A45: 137400 | B45: 4595 | C45: 0.1 | E45: 755300 | F45: 86859.5 | G45: 0.115
A46: 141300 | B46: 4986 | C46: 0.11
A47: 143200 | B47: 5196 | C47: 0.12
A48: 145100 | B48: 5425 | C48: 0.13
A49: 895900 | B49: 103028.5 | C49: 0.115
